Workbook

Sheet Open
B100: 21
B101: 19
B102: 20
B103: 18
B104: 17
B105: 14
B106: 15
B107: 14
B108: 13
B109: 12
B110: 11
B111: 10
B112: 9

Sheet Disclaimer

Sheet Handleiding

Sheet Stikstof
A3: Berekening van het zuurstofgehalte in een ruimte met vaten vloeibaar stikstof | I3: N²
A5: Normale situatie: | F5: Berekeningen
A7: Inhoud van de ruimte: | C7: 5 | D7: in m³ | F7: Ventilatie (Q): | H7: =C7*C8 -> 20 | I7: m³/uur
A8: Ventilatievoud: | C8: 4 | D8: in h-1
A9: Inhoud vat(en) N2: | C9: 100 | D9: liter | F9: Verdamping per dag: | H9: =(C10/100)*C9 -> 99 | I9: liter
A10: Verdamping per dag: | C10: 99 | D10: %
A11: Temperatuur in de ruimte: | C11: 20 | D11: °C | F11: 1 liter vloeibaar N2 | H11: =((0.691*(273+C11))/288) -> 0.7029965278 | I11: m³ gasvormig bij: | K11: =(C11) -> 20 | L11: °C
A12: (bij 1 atmosfeer) | F12: Verdamping per dag: | H12: =(H9*0.808) -> 79.992 | I12: kg
F13: Verdamping per uur: | H13: =(H12)/24 -> 3.333 | I13: kg
A15: Resultaat: | F15: 1 kg vloeibaar N2 | H15: =(H11/0.808) -> 0.8700452076 | I15: m³
A16: Stikstof gehalte in 1 m³ lucht: | C16: =((0.79+H17)/(1+H17))*100 -> 81.65927706 | D16: % | F16: Verdamping per uur: | H16: =(H13*H15) -> 2.899860677 | I16: m³
A17: Eindconcentratie zuurstof: | C17: =((0.21/(1+H17)))*100 -> 18.34072294 | D17: % | F17: Concentratie N2: | H17: =(H16/H7) -> 0.1449930339 | I17: m³ N2 / m³
A19: Melding: | B19: =IF(C17>20,"Veilig","Onveilig") -> Onveilig
A24: Calamiteitsituatie: | F24: Berekeningen per uur
A26: Inhoud van de ruimte: | C26: 50 | D26: in m³ | F26: Ventilatie (Q): | H26: =C26*C27 -> 100 | I26: m³/uur
A27: Ventilatievoud: | C27: 2 | D27: in h-1
A28: Inhoud vat(en) N2: | C28: 5 | D28: liter | F28: Verdamping per uur: | H28: =(C29/100)*C28 -> 5 | I28: liter
A29: Verdamping per uur | C29: 100 | D29: %
A30: Temperatuur in de ruimte: | C30: 20 | D30: °C | F30: 1 liter vloeibaar N2 | H30: =((0.691*(273+C30))/288) -> 0.7029965278 | I30: m³ gasvormig bij: | K30: =(C30) -> 20 | L30: °C
A31: (bij 1 atmosfeer) | F31: Verdamping per uur: | H31: =(H28*0.808) -> 4.04 | I31: kg
F33: 1 kg vloeibaar N2 | H33: =(H30/0.808) -> 0.8700452076 | I33: m³
A34: Resultaat: | F34: Verdamping per uur: | H34: =(H31*H33) -> 3.514982639 | I34: m³
A35: Stikstof gehalte in 1 m³ lucht: | C35: =((0.79+H35)/(1+H35))*100 -> 79.71308166 | D35: % | F35: Concentratie N2: | H35: =(H34/H26) -> 0.03514982639 | I35: m³ N2 / m³
A36: Eindconcentratie zuurstof: | C36: =((0.21/(1+H35)))*100 -> 20.28691834 | D36: %
A38: Melding: | B38: =IF(C36>20,"Veilig","Onveilig") -> Veilig
A41: O2 verlaging (= N2-verhoging)
A43: O2 % N2 % | C43: Globale weergave van de invloed van zuurstofverlaging (N2-toename) op het menselijk organisme.
A44: 21 | B44: 79 | C44: Het natuurlijk aandeel in de lucht
A45: 20 - 18 | B45: 20 - 82 | C45: Versnelde ademhaling
A46: 18 - 13 | B46: 82 - 87 | C46: Een kaars zal net doven. Ademvolume en polsslag verhoogd. Verlaagde aandacht.
A47: 13 - 10 | B47: 87 - 90 | C47: Beoordelings- en pijndrempen worden merkbaar verlaagd. Vermoeidheids- en flauwtegevoelens.
A48: 10 - 6 | B48: 90 - 94 | C48: Misselijkheid, slapte, bewusteloosheid, nalatend geheugen, gelatenheid.
A49: < 6 | B49: > 94 | C49: Naar adem snakkend, kramp. Snel intredende dood.

Sheet Kooldioxide
A3: Berekening van het zuurstofgehalte in een ruimte met een vat droogijs | I3: CO2
A5: Normale situatie: | F5: Berekeningen
A7: Inhoud ruimte: | C7: 100 | D7: in m³ | F7: Ventilatie (Q): | H7: =C7*C8 -> 400 | I7: m³ / uur
A8: Ventilatievoud: | C8: 4 | D8: in h-1
F9: Verdamping per week: | H9: =(C11/C10)*100 -> 12 | I9: %
A10: Inhoud vat CO2 | C10: 250 | D10: kg
A11: Verdamping per week: | C11: 30 | D11: kg | F11: Verdamping per uur: | H11: =(C11)/168 -> 0.1785714286 | I11: kg CO2
A13: Resultaat: | F13: Verdamping per uur: | H13: =H11*0.55 -> 0.09821428571 | I13: m³ CO2
A14: CO2 gehalte in 1m³ lucht | C14: =((0.0004+H15)/(1+H15))*100 -> 0.06453772511 | D14: %
A15: Eindconcentratie zuurstof: | C15: =((0.21/(1+H15)))*100 -> 20.99484502 | D15: % | F15: Concentratie CO2 | H15: =(H13/H7) -> 0.0002455357143 | I15: m³ CO2 / m³ lucht (per uur)
A17: Melding: | B17: =IF(C15>20,"Veilig","Onveilig") -> Veilig
A22: Calamiteitsituatie: | F22: Berekeningen per uur
A24: Inhoud ruimte: | C24: 100 | D24: in m³ | F24: Ventilatie (Q): | H24: =C24*C25 -> 400 | I24: m³ / uur
A25: Ventilatievoud: | C25: 4 | D25: in h-1
F26: Verdamping per uur: | H26: =(C28*0.541) -> 27.05 | I26: m³ CO2
A27: Inhoud vat CO2 | C27: 250 | D27: kg
A28: Verdamping per uur: | C28: 50 | D28: kg | F28: Concentratie CO2 | H28: =(H26/H24) -> 0.067625 | I28: m³ CO2 / m³ lucht (per uur)
A30: Resultaat:
A31: CO2 gehalte in 1m³ lucht | C31: =((0.0004+H28)/(1+H28))*100 -> 6.371619248 | D31: %
A32: Eindconcentratie zuurstof: | C32: =((0.21/(1+H28)))*100 -> 19.66982789 | D32: %
A34: Melding: | B34: =IF(C32>20,"Veilig","Onveilig") -> Onveilig
A37: O2 verlaging (= CO2-verhoging)
A39: O2% | B39: CO2% | C39: Globale weergave van de invloed van zuurstofverlaging (CO2-toename) op het menselijk organisme.
A40: 21 | B40: < 0,03 | C40: Natuurlijk aandeel in de lucht
A41: 20.9 | B41: 0.5 | C41: 5000 ppm = grenswaarde
A42: 20.5 | B42: Tot 2,5 | C42: Toename van het ademvolume 50 - 100 %
A43: 20,5 - 20,2 | B43: 2,5 - 4 | C43: Na 30 à 60 min. Versterkte, verdiepte ademhaling, hoofdpijn, hartkloppingen, verlaging posslag, duizeligheid, flauwte
A44: 20,2 - 19,5 | B44: 4 - 7 | C44: Binnen 30 à 60 min. direct of later dodelijk. Toename van ademvolume.
A45: 19,5 - 18,9 | B45: 7 - 10 | C45: Ernstige ademnood, bewusteloosheid treedt snel in. Overlading van bloed door CO2 met dodelijke afloop.
A46: 18,9 - 16,8 | B46: 10 - 20 | C46: Verlamming van levensbelangrijke centra binnen seconden
A47: < 16,8 | B47: > 20 | C47: Snel intredende dood

Sheet Informatie
I2: 1 | Q2: 2
H51: 3 | P51: 4
